bitfinex/quotes_SOLUSD_20251223
["timestamp","ask_amount","ask_price","bid_price","bid_amount"]
[1766499402272,8.10254338,123.42,123.4,1e-08]
[1766499403153,8.75254338,123.42,123.4,1e-08]
[1766499403664,0.65,123.41,123.4,1e-08]
[1766499403845,0.65,123.41,123.38,1e-08]
[1766499404029,0.65,123.4,123.38,1e-08]
[1766499404729,10.43767296,123.39,123.38,1e-08]
[1766499405949,8.10438447,123.39,123.38,1e-08]
[1766499409063,0.65,123.38,123.37,1e-08]
[1766499409357,15.45,123.38,123.36,1e-08]
[1766499409537,15.45,123.38,123.31,0.66]
[1766499409538,0.6,123.37,123.31,0.66]
[1766499409961,0.6,123.35,123.31,0.66]
[1766499410140,0.65,123.34,123.29,14.8]
[1766499410349,0.65,123.33,123.29,14.8]
[1766499411263,8.75898475,123.32,123.29,14.8]
[1766499411555,29.03144663,123.32,123.27,0.1]
[1766499411761,0.65,123.31,123.27,0.1]
[1766499412176,0.65,123.31,123.27,0.76]
[1766499412338,0.65,123.31,123.26,0.1]
[1766499413162,8.11030008,123.3,123.26,0.1]
[1766499413752,8.10990885,123.31,123.26,0.1]
[1766499413955,14.8,123.33,123.26,0.1]
[1766499414148,15.45,123.33,123.26,0.1]
[1766499414457,23.55860745,123.33,123.27,0.66]
[1766499415250,22.90860745,123.33,123.28,0.66]
[1766499415552,8.10860745,123.33,123.28,0.66]
[1766499415856,30.81925331,123.35,123.29,14.8]
[1766499416058,39.57652167,123.35,123.3,0.66]
[1766499416359,19.19494132,123.35,123.3,0.66]
[1766499418345,11.08767296,123.35,123.31,0.66]
[1766499419061,0.65,123.34,123.29,14.8]
[1766499419258,0.65,123.34,123.3,0.66]
[1766499420150,18.54484952,123.35,123.31,0.66]
[1766499420346,33.11421525,123.36,123.31,0.66]
[1766499420659,0.65,123.35,123.31,0.66]
[1766499421250,8.75704542,123.35,123.31,0.66]
[1766499421568,11.08767296,123.37,123.32,0.66]
[1766499421749,8.10522792,123.38,123.32,0.66]
[1766499421949,8.75522792,123.38,123.32,0.66]
[1766499422363,8.10522792,123.38,123.32,0.66]
[1766499422573,0.65,123.37,123.32,0.66]
[1766499422970,0.65,123.37,123.3,8.77010337]
[1766499423268,0.65,123.37,123.31,0.66]
[1766499423470,8.75635538,123.36,123.31,0.66]
[1766499424177,8.75594003,123.37,123.32,0.66]
[1766499424674,0.65,123.36,123.32,0.66]
[1766499425073,0.65,123.36,123.29,22.91059498]
[1766499425279,0.65,123.36,123.28,0.66]
[1766499425280,0.65,123.35,123.28,0.66]
[1766499425462,0.65,123.33,123.28,8.77140129]
[1766499425663,0.65,123.33,123.28,0.66]
[1766499427884,8.75853126,123.33,123.28,8.77158993]
[1766499428487,8.75853126,123.33,123.28,8.78158993]
[1766499428779,8.10853126,123.33,123.28,0.67]
[1766499428986,0.71,123.32,123.27,14.8]
[1766499429298,0.71,123.32,123.28,0.67]
[1766499430279,0.71,123.32,123.28,8.78146232]
[1766499430474,0.71,123.32,123.29,0.67]
[1766499431177,8.10853126,123.33,123.29,0.67]
[1766499431178,8.81853126,123.33,123.29,0.67]
[1766499433165,0.71,123.33,123.29,8.78093576]
[1766499433366,8.81717561,123.35,123.3,0.67]
[1766499434283,0.71,123.34,123.3,0.67]
[1766499434979,0.71,123.33,123.29,0.67]
[1766499435769,0.71,123.33,123.29,8.11088959]
[1766499435971,8.81777225,123.34,123.3,0.67]
[1766499437266,0.71,123.34,123.3,8.78023169]
[1766499437468,8.81769074,123.34,123.3,0.67]
[1766499440168,0.71,123.34,123.3,8.78025882]
[1766499440489,8.8177439,123.34,123.3,0.67]
[1766499440686,0.71,123.34,123.3,8.7802263]
[1766499441065,8.81768257,123.34,123.3,0.67]
[1766499441274,20.97655599,123.36,123.31,0.67]
[1766499441470,0.71,123.32,123.26,0.1]
[1766499441676,0.71,123.31,123.26,0.1]
[1766499443378,0.71,123.29,123.26,0.1]
[1766499443974,0.71,123.29,123.19,14.8]
[1766499444174,0.71,123.29,123.19,0.67]
[1766499444476,0.71,123.29,123.19,15.47]
[1766499444780,0.71,123.29,123.14,0.1]
[1766499444781,0.71,123.24,123.16,0.67]
[1766499445114,0.71,123.24,123.18,0.67]
[1766499445486,0.71,123.22,123.15,0.67]
[1766499445799,0.71,123.22,123.14,26.00767296]
[1766499446386,0.71,123.22,123.14,15.57]
[1766499446588,0.71,123.22,123.14,0.77]
[1766499446793,0.71,123.21,123.15,14.8]
[1766499447578,8.82688311,123.2,123.16,0.67]
[1766499449186,8.82688311,123.2,123.17,14.8]
[1766499449703,8.82688311,123.2,123.16,0.67]
[1766499449904,8.82688311,123.2,123.17,14.82]
[1766499450409,0.71,123.19,123.14,0.1]
[1766499450587,10.43767296,123.19,123.14,0.1]
[1766499450782,0.71,123.18,123.14,0.1]
[1766499451709,8.82830545,123.18,123.14,0.77]
[1766499452406,0.71,123.17,123.14,0.1]
[1766499452613,0.71,123.17,123.14,1e-08]
[1766499453706,8.11951932,123.16,123.14,1e-08]
[1766499454012,0.71,123.15,123.14,1e-08]
[1766499455886,8.11951932,123.16,123.14,1e-08]
[1766499456187,8.82951932,123.16,123.14,1e-08]
[1766499457083,8.11951932,123.16,123.14,1e-08]
[1766499457291,8.83951932,123.16,123.14,1e-08]
[1766499457487,8.11896133,123.17,123.14,1e-08]
[1766499457693,20.29623836,123.18,123.14,0.66000001]
[1766499457694,8.118201,123.18,123.14,0.66000001]
[1766499458411,19.27534555,123.19,123.14,0.66000001]
[1766499458713,19.22534555,123.19,123.14,0.66000001]
[1766499459313,18.55534555,123.19,123.14,0.66000001]
[1766499459506,0.67,123.18,123.14,1e-08]
[1766499461409,8.11886011,123.17,123.14,1e-08]
[1766499461603,0.67,123.16,123.09,10.43767296]
[1766499461803,18.55653307,123.17,123.04,4.61994037]
[1766499461804,0.67,123.13,123.04,4.61994037]
[1766499462007,0.67,123.13,122.84,40.51147428]
[1766499462008,0.67,123.05,122.8,75.0038732]
[1766499462207,10.43767296,122.99,122.85,8.29725176]
[1766499462392,10.43767296,122.95,122.85,8.13986363]
[1766499462592,10.43767296,122.95,122.84,14.82]
[1766499462593,0.67,122.93,122.84,8.14050086]
[1766499462912,0.67,122.93,122.72,4.67434911]
[1766499462913,0.67,122.9,122.78,55.54132322]
[1766499463098,0.67,122.9,122.84,8.14051773]
[1766499463298,14.84,122.95,122.84,14.82]
[1766499463500,18.57179316,122.94,122.88,10.43767296]
[1766499463702,9.65767296,122.94,122.92,10.43767296]
[1766499463910,0.67,123.01,122.92,10.43767296]
[1766499464099,9.65767296,123.01,122.99,4.2387835]
[1766499464501,0.67,123.04,122.99,14.67645646]
[1766499465108,13.03165886,123.06,123.0,14.82]
[1766499465315,4.235,123.06,123.03,10.43767296]
[1766499465519,0.67,123.05,122.99,29.49645646]
[1766499465905,0.67,123.05,122.99,14.67645646]
[1766499466213,0.67,123.05,123.0,14.82]
[1766499466406,0.67,123.05,122.99,14.67645646]
[1766499466618,0.67,123.05,123.0,14.82]
[1766499467314,0.67,123.05,122.99,4.2387835]
[1766499467315,0.67,123.04,122.99,4.2387835]
[1766499467508,0.67,123.02,122.99,4.2387835]
[1766499469626,8.79942037,123.01,122.99,1e-08]
[1766499469921,8.12942037,123.01,122.99,1e-08]
[1766499470124,8.79942037,123.01,122.99,1e-08]
[1766499470811,8.12743823,123.04,122.99,1e-08]
[1766499471008,0.67,123.03,122.99,1e-08]
[1766499471402,8.79694582,123.05,122.99,8.13068463]
[1766499471602,8.79694582,123.05,122.99,1e-08]
[1766499471797,0.67,123.05,122.99,1e-08]
[1766499472000,8.79550734,123.07,122.99,1e-08]
[1766499472324,8.79550734,123.07,123.0,14.84]
[1766499472909,0.67,123.07,123.0,14.84]
[1766499473105,8.7956328,123.07,123.0,14.84]
[1766499473505,0.67,123.07,123.0,14.84]
[1766499473724,8.79419696,123.09,123.01,8.12942037]
[1766499473925,8.79419696,123.09,123.01,28.4529713]
[1766499474923,0.67,123.09,123.01,28.4529713]
[1766499475125,0.67,123.09,123.01,8.12942037]
[1766499475424,0.67,123.09,123.02,14.84]
[1766499476022,8.12479688,123.08,123.02,22.96873497]
[1766499476215,0.67,123.08,123.02,22.96873497]
[1766499477130,0.67,123.08,123.03,14.84]
[1766499477428,0.67,123.08,123.0,10.43767296]
[1766499477630,0.67,123.08,123.01,14.84]
[1766499477828,0.67,123.08,123.01,22.96933745]
[1766499478332,8.79545705,123.07,123.02,14.84]
[1766499478534,0.67,123.07,123.02,14.84]
[1766499480623,8.79563039,123.07,123.02,22.96862545]
[1766499480810,8.79563039,123.07,123.03,14.84]
[1766499481136,0.67,123.07,123.01,8.12932278]
[1766499481336,8.79585761,123.07,123.0,18.56757402]
[1766499481531,8.12585761,123.07,123.01,22.96935127]
[1766499481733,8.79585761,123.07,123.01,14.84]
[1766499482453,0.67,123.06,123.01,14.84]
[1766499482616,0.67,123.09,123.01,22.96928137]
[1766499482815,0.67,123.08,123.01,22.96928137]
[1766499483016,0.67,123.08,123.01,43.2928323]
[1766499483545,0.67,123.11,123.01,43.2928323]
[1766499483920,0.67,123.11,123.04,10.43767296]
[1766499484244,0.67,123.13,123.06,28.44141069]
[1766499484548,0.67,123.13,123.07,10.43767296]
[1766499484740,0.67,123.13,123.08,14.84]
[1766499485118,8.79041932,123.15,123.08,14.84]
[1766499486255,8.79041932,123.15,123.08,8.12456311]
[1766499486432,8.79041932,123.15,123.09,14.84]
[1766499486744,0.67,123.15,123.09,14.84]
[1766499486923,0.67,123.15,123.1,14.84]
[1766499487243,8.81911743,123.17,123.1,14.84]
[1766499487644,0.7,123.16,123.11,14.84]
[1766499487855,0.7,123.16,123.12,14.84]
[1766499488425,8.81974285,123.16,123.12,14.84]
[1766499489930,8.81957867,123.16,123.12,14.84]
[1766499492750,0.7,123.16,123.12,14.84]
[1766499492936,8.81903363,123.17,123.12,14.84]
[1766499493131,8.81903363,123.17,123.12,22.96205788]
[1766499493337,0.7,123.17,123.12,14.84]
[1766499493527,0.7,123.17,123.07,10.43767296]
[1766499493528,8.11935472,123.17,123.1,8.12327306]
[1766499493829,0.7,123.14,123.11,14.84]
[1766499494423,0.7,123.17,123.03,6.1281]
[1766499494643,0.7,123.17,123.06,10.43767296]
[1766499494850,0.7,123.17,123.07,14.84]
[1766499495020,0.7,123.17,123.03,6.1281]
[1766499495021,0.7,123.17,123.08,14.84]
[1766499496021,8.11951932,123.16,123.09,8.12413681]
[1766499496240,8.81951932,123.16,123.09,8.12413681]
[1766499496469,0.7,123.16,123.1,14.82]
[1766499496970,8.81827581,123.18,123.1,14.82]
[1766499497269,20.29317403,123.2,123.13,10.43767296]
[1766499497270,0.7,123.2,123.13,10.43767296]
[1766499497448,0.7,123.2,123.14,14.82]
[1766499498058,0.7,123.2,123.15,8.12017864]
[1766499499477,0.7,123.2,123.16,14.82]
[1766499500160,0.7,123.2,123.16,22.93899976]
[1766499500552,8.81582666,123.22,123.16,22.93899976]
[1766499500747,8.11582666,123.22,123.16,22.93899976]
[1766499500969,0.7,123.21,123.16,22.93899976]
[1766499501973,0.7,123.2,123.16,14.82]
[1766499502170,0.7,123.2,123.09,30.84175805]
[1766499502171,0.7,123.2,123.12,8.12186888]
[1766499502362,0.7,123.2,123.13,22.94137603]
[1766499502676,0.7,123.2,123.15,8.11980679]
[1766499503754,0.7,123.2,123.15,8.12017864]
[1766499505073,8.81699858,123.2,123.15,8.12017864]
[1766499505679,0.7,123.19,123.12,10.43767296]
[1766499505978,0.7,123.17,123.13,14.82]
[1766499506477,8.81781386,123.19,123.13,14.82]
[1766499507074,0.7,123.19,123.13,14.82]
[1766499507883,0.7,123.19,123.14,8.12083807]
[1766499508067,0.7,123.2,123.14,8.12083807]
[1766499508378,0.7,123.2,123.15,14.82]
[1766499508760,0.7,123.2,123.16,14.82]
[1766499509781,8.117542,123.19,123.16,14.82]
[1766499509956,8.817542,123.19,123.16,14.82]
[1766499510280,0.7,123.18,123.16,13.38]
[1766499511280,8.117542,123.19,123.16,13.38]
[1766499512081,8.81702638,123.2,123.16,13.38]
[1766499512557,8.81702638,123.2,123.15,8.830052]
[1766499512558,8.81702638,123.2,123.17,14.82]
[1766499514477,0.7,123.21,123.17,14.82]
[1766499515160,0.7,123.21,123.17,15.53]
[1766499516875,8.81627873,123.21,123.17,15.53]
[1766499518785,0.7,123.21,123.18,0.72]
[1766499518987,8.81629641,123.21,123.18,0.72]
[1766499519490,8.11586427,123.22,123.18,0.72]
[1766499519794,8.78586427,123.22,123.18,0.72]
[1766499520291,18.55279857,123.23,123.18,0.72]
[1766499520468,0.67,123.26,123.18,0.72]
[1766499520675,0.67,123.25,123.18,0.72]
[1766499520874,0.67,123.25,123.2,0.72]
[1766499520875,0.67,123.24,123.2,0.72]
[1766499521191,0.67,123.24,123.21,14.82]
[1766499521395,0.67,123.24,123.21,15.54]
[1766499522711,0.67,123.25,123.21,15.54]
[1766499523376,0.67,123.25,123.21,23.6561313]
[1766499523571,18.55006111,123.27,123.22,0.72]
[1766499523805,0.67,123.26,123.22,0.72]
[1766499524906,8.113092,123.26,123.22,0.72]
[1766499525074,0.67,123.25,123.23,14.82]
[1766499526927,0.67,123.25,123.21,0.72]
[1766499527101,8.78377265,123.25,123.22,14.82]
[1766499529624,20.28138497,123.27,123.22,14.82]
[1766499529625,28.39365884,123.27,123.22,14.79536172]
[1766499531020,28.39365884,123.27,123.22,15.51536172]
[1766499531605,8.11359026,123.25,123.22,15.51536172]
[1766499535225,0.67,123.24,123.17,14.82]
[1766499535411,0.67,123.24,123.17,15.54]
[1766499535612,0.67,123.24,123.18,0.72]
[1766499537032,28.39816265,123.25,123.18,8.11796329]
[1766499537222,8.114187,123.25,123.19,0.72]
[1766499537431,8.114187,123.25,123.21,0.72]
[1766499538031,8.78311142,123.26,123.21,0.72]
[1766499539229,8.78311142,123.26,123.21,8.83597755]
[1766499540105,8.78311142,123.26,123.22,0.72]
[1766499540305,0.67,123.25,123.23,14.82]
[1766499541228,0.67,123.25,123.21,14.82]
[1766499541430,0.67,123.25,123.2,0.72]
[1766499541431,0.67,123.25,123.18,25.97767296]
[1766499542128,0.67,123.25,123.19,0.72]
[1766499542435,0.67,123.23,123.19,0.72]
[1766499543019,0.67,123.23,123.19,14.82]
[1766499543517,0.67,123.23,123.19,15.54]
[1766499544736,8.11424862,123.24,123.2,0.72]
[1766499545529,8.78424862,123.24,123.2,0.72]
[1766499545936,0.67,123.24,123.2,0.72]
[1766499546135,0.67,123.25,123.2,0.72]
[1766499546641,0.67,123.27,123.2,0.72]
[1766499546935,0.67,123.27,123.22,0.68]
[1766499547234,8.98182934,123.28,123.24,0.68]
[1766499547413,0.87,123.28,123.24,0.68]
[1766499547832,0.2,123.28,123.24,0.68]
[1766499548019,8.31182708,123.28,123.21,28.40678516]
[1766499548229,8.98182708,123.28,123.23,0.68]
[1766499550239,8.98182708,123.28,123.24,0.68]
[1766499551137,0.67,123.27,123.21,18.55372021]
[1766499551313,8.11293201,123.26,123.22,15.5]
[1766499552037,8.78293201,123.26,123.22,0.68]
[1766499552338,8.78293201,123.26,123.22,15.5]
[1766499553327,8.11227387,123.27,123.22,14.82]
[1766499553526,0.2,123.28,123.24,0.68]
[1766499553845,0.67,123.27,123.22,0.68]
[1766499554016,0.67,123.27,123.22,15.5]
[1766499555439,8.78274388,123.27,123.22,23.61556338]
[1766499555623,0.2,123.28,123.23,0.68]
[1766499557742,0.2,123.28,123.24,8.79424862]
[1766499557933,0.2,123.28,123.25,14.82]
[1766499558821,0.2,123.28,123.25,15.5]
[1766499559138,8.31162021,123.28,123.25,15.5]
[1766499559340,0.2,123.28,123.25,15.5]
[1766499561444,8.98212587,123.28,123.24,0.68]
[1766499561747,0.87,123.28,123.24,8.79415948]
[1766499562044,0.2,123.28,123.24,8.11415948]
[1766499562246,0.2,123.28,123.25,0.68]
[1766499563250,0.2,123.28,123.27,0.68]
[1766499563936,0.2,123.28,123.26,14.82]
[1766499564137,8.98172033,123.28,123.24,0.68]
[1766499564450,0.87,123.28,123.25,14.82]
[1766499565556,0.2,123.28,123.25,23.61358401]
[1766499565844,0.2,123.28,123.26,0.68]
[1766499566662,0.2,123.28,123.26,14.82]
[1766499567027,0.87,123.28,123.24,8.11400917]
[1766499567228,0.87,123.28,123.24,8.79400917]
[1766499567428,8.98175985,123.28,123.24,15.5]
[1766499570773,0.87,123.28,123.25,0.68]
[1766499572562,8.98190442,123.28,123.24,15.5]
[1766499573056,0.2,123.28,123.25,0.67]
[1766499575354,0.67,123.27,123.23,11.10767296]
[1766499575560,0.67,123.27,123.24,14.82]
[1766499575758,8.31169672,123.28,123.24,15.49]
[1766499575956,8.98169672,123.28,123.24,15.49]
[1766499576847,8.98169672,123.28,123.24,14.82]
[1766499577161,8.98169672,123.28,123.24,15.48]
[1766499578736,0.72,123.27,123.2,0.66]
[1766499578943,0.72,123.27,123.15,0.66]
[1766499579245,0.72,123.27,123.2,0.66]
[1766499580260,0.72,123.27,123.21,0.66]
[1766499580467,0.72,123.27,123.21,8.77571544]
[1766499580845,0.72,123.26,123.22,15.48]
[1766499582161,8.83311568,123.26,123.22,15.48]
[1766499584042,8.1124298,123.27,123.23,0.66]
[1766499584244,0.72,123.26,123.23,0.66]
[1766499585157,8.1124298,123.27,123.23,0.66]
[1766499585361,9.03183845,123.28,123.24,0.66]
[1766499585564,0.2,123.28,123.25,14.82]
[1766499585766,8.31196052,123.28,123.25,15.48]
[1766499587451,0.2,123.28,123.25,15.48]
[1766499587674,0.2,123.28,123.26,0.66]
[1766499590365,0.2,123.28,123.27,0.66]
[1766499590550,0.2,123.29,123.27,0.66]
[1766499595952,0.2,123.29,123.24,10.43767296]
[1766499596159,0.72,123.28,123.25,15.48]
[1766499596546,8.3111638,123.29,123.25,15.48]
[1766499596747,9.0311638,123.29,123.25,15.48]
[1766499599474,8.3111638,123.29,123.26,0.66]
[1766499599973,9.0311638,123.29,123.26,0.66]
[1766499600367,0.2,123.29,123.26,0.66]
[1766499601371,0.2,123.29,123.27,0.66]
[1766499601572,9.03099145,123.29,123.24,18.55155179]
[1766499601755,9.03099145,123.29,123.25,15.48]
[1766499601955,9.03099145,123.29,123.26,0.66]
[1766499602770,0.72,123.28,123.25,14.82]
[1766499602972,0.72,123.28,123.25,15.48]
[1766499603469,9.03099145,123.29,123.25,15.48]
[1766499604459,0.92,123.29,123.25,23.59337964]
[1766499605077,9.03116453,123.29,123.25,15.48]
[1766499605376,0.92,123.29,123.25,23.59355721]
[1766499605680,9.03113094,123.29,123.25,0.66]
[1766499605976,9.03113094,123.29,123.25,15.48]
[1766499606961,0.71,123.28,123.23,0.7]
[1766499607171,0.71,123.28,123.24,14.82]
[1766499607957,0.71,123.28,123.24,15.52]
[1766499608958,10.43767296,123.26,123.13,0.1]
[1766499609160,0.71,123.25,123.2,0.7]
[1766499609360,0.71,123.25,123.2,8.11652052]
[1766499609654,19.25988101,123.28,123.19,14.82]
[1766499609874,19.25988101,123.28,123.2,0.7]
[1766499610063,0.71,123.27,123.23,0.7]
[1766499611376,8.82250612,123.27,123.23,0.7]
[1766499612564,0.91,123.29,123.24,0.7]
[1766499612964,0.2,123.29,123.24,0.7]
[1766499613171,0.71,123.28,123.24,0.7]
[1766499613789,8.82191056,123.28,123.24,0.7]
[1766499614088,0.71,123.28,123.24,8.81406758]
[1766499615089,0.71,123.28,123.25,0.7]
[1766499616767,0.2,123.29,123.26,0.7]
[1766499618772,0.91,123.29,123.24,18.55164481]
[1766499618973,0.71,123.28,123.17,0.7]
[1766499619287,0.71,123.27,123.21,0.7]
[1766499619584,0.71,123.27,123.17,20.29607966]
[1766499619772,0.71,123.24,123.19,0.7]
[1766499619972,0.71,123.24,123.13,40.70598492]
[1766499619973,0.71,123.27,123.13,0.1]
[1766499620175,0.71,123.24,123.14,20.30154373]
[1766499620496,10.43767296,123.25,123.17,0.7]
[1766499620497,0.71,123.22,123.17,0.7]
[1766499621075,0.71,123.22,123.17,15.52]
[1766499621789,0.71,123.22,123.17,23.63883474]
[1766499621992,0.71,123.22,123.18,0.7]
[1766499622587,0.71,123.2,123.15,14.82]
[1766499622777,0.71,123.2,123.15,15.52]
[1766499623184,0.71,123.2,123.15,0.7]
[1766499623598,0.71,123.2,123.14,0.7]
[1766499623769,0.71,123.2,123.15,0.7]
[1766499623973,0.71,123.2,123.13,0.8]
[1766499624273,10.43767296,123.18,123.13,0.1]
[1766499624476,10.43767296,123.18,123.09,0.7]
[1766499624477,0.71,123.15,123.09,0.7]
[1766499626789,0.71,123.13,123.09,0.7]
[1766499627673,0.71,123.13,123.08,0.1]
[1766499628291,8.12083807,123.14,123.09,0.7]
[1766499628492,8.83083807,123.14,123.09,0.7]
[1766499628694,8.83083807,123.14,123.09,8.82392967]
[1766499628695,0.71,123.14,123.09,8.82392967]
[1766499628899,8.83085218,123.14,123.09,8.82392967]
[1766499629686,8.12034463,123.15,123.1,0.7]
[1766499629994,0.71,123.15,123.1,0.7]
[1766499630379,0.71,123.15,123.11,0.7]
[1766499630574,8.82903435,123.17,123.11,0.7]
[1766499630874,8.82903435,123.17,123.11,8.12270894]
[1766499631074,8.82903435,123.17,123.12,0.7]
[1766499632198,8.11679327,123.21,123.16,0.7]
[1766499632399,0.71,123.2,123.15,25.95767296]
[1766499632600,0.71,123.2,123.15,15.52]
[1766499632799,0.71,123.2,123.15,0.7]
[1766499633100,0.71,123.2,123.13,25.97767296]
[1766499633300,0.71,123.2,123.14,0.72]
[1766499634182,8.797542,123.19,123.14,0.72]
[1766499634676,30.72823379,123.21,123.14,8.12075117]
[1766499634880,8.79688311,123.2,123.15,0.72]
[1766499636384,8.11688311,123.2,123.15,0.72]
[1766499636706,0.68,123.19,123.15,0.72]
[1766499638395,8.79764455,123.19,123.15,0.72]
[1766499640385,0.68,123.19,123.15,0.72]
[1766499641492,8.79756987,123.19,123.15,0.72]
[1766499641692,0.7,123.18,123.13,0.72]
[1766499642608,0.7,123.17,123.11,15.54]
[1766499642798,0.7,123.17,123.11,0.72]
[1766499643612,8.81951932,123.16,123.11,0.72]
[1766499643809,25.97767296,123.18,123.12,0.72]
[1766499644105,0.7,123.17,123.12,0.72]
[1766499644888,0.7,123.17,123.13,0.72]
[1766499646916,8.11780219,123.19,123.14,0.72]
[1766499647096,0.7,123.18,123.14,0.72]
[1766499647612,0.7,123.18,123.11,20.30631444]
[1766499647613,0.7,123.18,123.11,8.12225344]
[1766499647806,0.7,123.18,123.12,0.72]
[1766499649105,8.81886011,123.17,123.12,0.72]
[1766499650713,20.29385502,123.19,123.12,0.72]
[1766499650714,28.41139702,123.19,123.12,0.72]
[1766499650919,0.7,123.18,123.12,0.72]
[1766499652017,0.7,123.18,123.12,8.12195964]
[1766499652220,0.7,123.18,123.13,0.72]
[1766499653102,8.11853487,123.18,123.13,0.72]
[1766499653312,0.7,123.17,123.13,0.72]
[1766499655420,8.81901256,123.17,123.13,0.72]
[1766499656819,0.7,123.16,123.1,0.72]
[1766499657019,0.7,123.13,123.07,0.82]
[1766499657529,8.82215724,123.12,123.07,0.82]
[1766499657718,8.82215724,123.12,123.08,0.82]
[1766499659016,0.7,123.11,123.08,0.1]
[1766499660235,0.7,123.11,123.08,0.82]
[1766499660405,8.82294624,123.11,123.08,0.82]
[1766499660606,0.7,123.1,123.08,0.1]
[1766499660819,0.7,123.1,123.08,1e-08]
[1766499661214,8.82294624,123.11,123.08,1e-08]
[1766499662235,0.7,123.11,123.08,0.72000001]
[1766499662522,23.66237025,123.12,123.08,0.72000001]
[1766499663506,8.82237025,123.12,123.08,0.72000001]
[1766499665435,28.42776336,123.12,123.08,1e-08]
[1766499665625,0.7,123.11,123.08,1e-08]
[1766499666632,8.12237025,123.12,123.08,1e-08]
[1766499666934,8.80237025,123.12,123.08,0.69000001]
[1766499667112,0.68,123.11,123.08,0.69000001]
[1766499667311,14.82,123.13,123.08,0.69000001]
[1766499667532,0.68,123.15,123.1,10.43767296]
[1766499667733,8.79973077,123.16,123.11,0.69]
[1766499667938,0.68,123.16,123.11,0.69]
[1766499668634,8.79965803,123.16,123.11,0.69]
[1766499669022,8.79965803,123.16,123.12,0.69]
[1766499669439,0.68,123.16,123.12,0.69]
[1766499669733,8.11909426,123.17,123.12,0.69]
[1766499669931,8.79909426,123.17,123.12,0.69]
[1766499670539,8.79909426,123.17,123.12,8.81206814]
[1766499670715,8.11909426,123.17,123.13,0.69]
[1766499671026,8.79838389,123.18,123.13,0.69]
[1766499672839,8.79838389,123.18,123.14,0.69]
[1766499674234,8.79838389,123.18,123.12,0.69]
[1766499674235,0.68,123.17,123.12,0.69]
[1766499675042,0.68,123.16,123.12,0.69]
[1766499675636,0.68,123.17,123.13,0.69]
[1766499676229,8.11951932,123.16,123.13,0.69]
[1766499676440,8.79951932,123.16,123.11,0.69]
[1766499676641,8.79951932,123.16,123.12,0.69]
[1766499677548,8.11951932,123.16,123.12,0.69]
[1766499677738,8.79951932,123.16,123.12,0.69]
[1766499677939,0.68,123.18,123.13,0.69]
[1766499678244,14.84,123.19,123.14,0.69]
[1766499678245,8.11785224,123.19,123.14,0.69]
[1766499678441,8.79785224,123.19,123.14,0.69]
[1766499678644,0.68,123.19,123.15,0.69]
[1766499678826,30.4881,123.24,123.15,0.69]
[1766499678827,0.68,123.23,123.15,0.69]